[Event "29th Bosnjaci Open 2025"]
[Site "Bosnjaci"]
[Date "2025.01.05"]
[Round "4.15"]
[White "Besedes, Danilo"]
[Black "Baturina, Marin"]
[Result "1-0"]
[ECO "A13"]
[WhiteElo "2239"]
[BlackElo "1976"]
[Annotator "TA"]
[PlyCount "79"]
[EventDate "2025.01.04"]
[EventType "swiss"]
[EventCountry "CRO"]
[SourceTitle "playchess.com"]
[Source "ChessBase"]
[SourceQuality "1"]
[TimeControl "5400+30"]

{[%evp 9,79,13,25,17,22,0,0,0,0,-4,0,-8,22,25,29,32,23,18,51,38,31,17,27,12,26,18,41,43,49,39,44,55,78,57,74,65,82,16,15,34,50,59,81,83,82,82,84,76,115,89,139,101,129,27,121,121,121,74,71,73,77,72,194,181,431,408,796,795,243,846,29995,29994]} 1. Nf3 {[%emt 0:00:04]} d5 {[%emt 0:04:03]} 2. e3 {[%emt 0:00:14]} Nf6 {[%emt 0:00:20]} 3. c4 {[%emt 0:00:18]} e6 {[%emt 0:00:33]} 4. b3 {[%emt 0:00:08]} Nbd7 {[%emt 0:01:24]} 5. Bb2 {[%emt 0:00:10]} Be7 {[%emt 0:00:36]} 6. Nc3 {[%emt 0:00:36]} O-O {[%emt 0:00:38]} 7. Qc2 {[%emt 0:00:54]} b6 {[%emt 0:04:08]} 8. cxd5 {[%emt 0:05:04]} exd5 {[%emt 0:00:25]} 9. d4 {[%emt 0:03:23]} Bb7 {[%emt 0:02:49]} 10. Bd3 {[%emt 0:00:06]} h6 {[%emt 0:00:16]} 11. O-O {[%emt 0:00:54]} c5 {[%emt 0:01:16]} 12. Rad1 {[%emt 0:06:29]} Rc8 {[%emt 0:01:48]} 13. Bf5 {[%emt 0:00:24]} Qc7 {[%emt 0:03:51] Prevents Ne5} 14. Qb1 {[%emt 0:02:27][%cal Of3e5]} Rcd8 {[%emt 0:07:33]} 15. Nb5 {[%emt 0:07:17]} Qb8 {[%emt 0:01:59]} 16. Ne5 {[%emt 0:00:45]} a6 {[%emt 0:04:27]} (16... Rfe8 $5) 17. Nc3 {[%emt 0:00:42]} cxd4 {[%emt 0:04:58]} (17... Nxe5 18. dxe5 Ne8 (18... Qxe5 $2 19. Nxd5 Qxd5 20. Rxd5 $18) 19. Ne2 $14) 18. Nxd7 {[%emt 0:04:15]} Nxd7 {[%emt 0:00:08]} 19. Rxd4 {[%emt 0:00:31]} Nf6 {[%emt 0:05:23]} 20. Ne2 {[%emt 0:02:16]} Bd6 {[%emt 0:02:56] Inhibits Rf4.} 21. Rh4 {[%emt 0:02:49]} Be5 {[%emt 0:05:28]} 22. Nd4 {[%emt 0:00:09]} Ne4 {[%emt 0:02:23]} 23. Nf3 {[%emt 0:11:19] Prevents Nd2} ({White should play} 23. Qd1 $16) 23... Bxb2 $11 {[%emt 0:05:41]} 24. Qxb2 {[%emt 0:00:05]} Rfe8 {[%emt 0:02:11]} 25. Rg4 $40 {[%emt 0:01:46][%cal Bh4g4,Bg4g3,Bg3f3][%mdl 160] White mounts an attack.} g5 {[%emt 0:08:02]} 26. Bxe4 {[%emt 0:09:00]} (26. Nxg5 hxg5 27. f3 Nc5 28. Rxg5+ Kf8 29. Rh5) 26... Rxe4 {[%emt 0:00:11]} 27. Rg3 {[%emt 0:01:15]} Qd6 {[%emt 0:06:59]} 28. Rc1 {[%emt 0:04:09]} (28. h4 {is interesting.} g4 29. Nd2 h5 30. Nxe4 dxe4 31. Qd4) 28... f6 {[%emt 0:09:07]} 29. Nd4 {[%emt 0:01:48]} Qd7 {[%emt 0:00:53]} (29... Rc8 $142) 30. Rf3 {[%emt 0:01:19]} Rf8 {[%emt 0:01:56]} 31. Ne2 {[%emt 0:03:42]} (31. h4 $16) 31... Re6 {[%emt 0:00:33]} (31... d4 $11) 32. Qd4 $16 {[%emt 0:00:44]} Rc6 {[%emt 0:01:16]} 33. h4 {[%emt 0:01:30]} (33. Rxc6 $142 Qxc6 34. g4) 33... Rxc1+ {[%emt 0:02:23]} 34. Nxc1 {[%emt 0:00:10]} Qe6 {[%emt 0:00:11]} 35. Ne2 {[%emt 0:01:32][%cal Bc1e2,Be2g3,Bg3f5][%mdl 32]} Ba8 {[%emt 0:03:05]} (35... Qe4 $16) 36. Ng3 $18 {[%emt 0:02:54]} Qe5 $2 {[%emt 0:01:16]} (36... f5 {is a better defense.} 37. hxg5 hxg5) 37. Qxb6 {[%emt 0:01:15]} gxh4 {[%emt 0:00:49]} (37... d4 $142) 38. Nf5 {[%emt 0:00:34][%cal Ob6a7]} Qa1+ {[%emt 0:02:40]} 39. Kh2 {[%emt 0:00:06] and Qe6+ would now be decisive} d4 {[%emt 0:01:15] [#]} 40. Qa7 $1 {[%emt 0:00:08]} 1-0

[Event "29th Bosnjaci Open 2025"]
[Site "Bosnjaci"]
[Date "2025.01.05"]
[Round "4.16"]
[White "Pirvulescu, Ekaterina"]
[Black "Jusup, Matej"]
[Result "1-0"]
[ECO "B13"]
[WhiteElo "2043"]
[BlackElo "2238"]
[Annotator "TA"]
[PlyCount "131"]
[EventDate "2025.01.04"]
[EventType "swiss"]
[EventCountry "CRO"]
[SourceTitle "playchess.com"]
[Source "ChessBase"]
[SourceQuality "1"]
[TimeControl "5400+30"]

{[%evp 47,131,127,147,-195,-159,-162,-165,-209,-100,-133,-156,-246,-252,-247,-223,-231,-157,-152,-100,-150,-160,-215,0,0,0,0,0,0,0,0,0,0,0,0,0,0,0,0,0,0,0,0,0,0,0,0,0,0,0,0,0,0,0,0,0,0,0,0,0,0,29980,29963,29992,1153,1146,1146,1146,1146,1081,934,29972,29973,29975,29975,29976,29977,29977,29974,29977,29978,29978,29979,29980,29981,29981,29981]} 1. e4 {[%emt 0:00:02]} c6 {[%emt 0:00:06]} 2. d4 {[%emt 0:00:07]} d5 {[%emt 0:00:06]} 3. exd5 {[%emt 0:00:07]} cxd5 {[%emt 0:00:10]} 4. Bd3 {[%emt 0:00:09]} Nc6 {[%emt 0:00:06]} 5. c3 {[%emt 0:00:14]} Qc7 {[%emt 0:00:06]} 6. h3 {[%emt 0:00:38]} e6 {[%emt 0:00:23] is recently more successful than 6...Nf6. B13: Caro-Kann: Exchange Variation and Panov-Botvinnik Attack.} 7. Nf3 {[%emt 0:01:15]} Bd6 {[%emt 0:00:12]} 8. O-O {[%emt 0:01:04]} Nge7 {[%emt 0:00:06]} 9. Re1 {[%emt 0:07:21]} Bd7 {[%emt 0:08:58]} 10. Qe2 {[%emt 0:11:30]} f6 {[%emt 0:02:20]} 11. c4 {[%emt 0:05:34]} Nb4 {[%emt 0:14:36]} 12. c5 {[%emt 0:02:17]} Nxd3 {[%emt 0:00:43]} 13. Qxd3 {[%emt 0:01:04]} Bf4 {[%emt 0:00:10]} 14. Nc3 {[%emt 0:01:39]} a6 $146 {[%emt 0:03:31]} ({Predecessor:} 14... Bxc1 15. Raxc1 a6 16. h4 O-O 17. b4 b5 18. g3 Kh8 19. Kg2 Rad8 20. Re2 e5 21. dxe5 {1-0 Perez Garcia,A (2182)-Garcia Gil,J (2127) Barcelona Sant Marti op 8th 2019 (4)}) 15. b4 {[%emt 0:02:41]} Kf7 {[%emt 0:08:17]} 16. Bxf4 {[%emt 0:16:19]} Qxf4 {[%emt 0:00:36]} 17. a4 {[%emt 0:01:37]} g5 {[%emt 0:05:43]} 18. g3 {[%emt 0:12:46]} Qc7 {[%emt 0:02:34]} 19. b5 {[%emt 0:01:29]} h5 {[%emt 0:00:48]} 20. bxa6 {[%emt 0:04:57]} bxa6 {[%emt 0:02:29]} 21. Rab1 {[%emt 0:03:19]} Ng6 {[%emt 0:16:19]} 22. Rb6 {[%emt 0:07:43]} h4 {[%emt 0:01:59]} 23. Kg2 {[%emt 0:04:26]} hxg3 {[%emt 0:18:58]} 24. fxg3 {[%emt 0:00:25]} (24. Rxa6 $2 Nf4+ 25. Kf1 $19) 24... Ne7 {[%emt 0:00:19]} 25. Rxa6 $2 {[%emt 0:07:20][%mdl 8192]} (25. Reb1 $16 {and life is bright.}) 25... Rxa6 $19 {[%emt 0:02:18]} 26. Qxa6 {[%emt 0:00:02]} Nf5 {[%emt 0:00:19]} 27. Ne2 {[%emt 0:00:18]} Ne3+ {[%emt 0:03:11]} (27... Rb8 $19 {has better winning chances. Threatens to win with ...Rb2.} 28. Qd3 Rb2 (28... Bxa4 29. g4 $17) 29. Nxg5+ fxg5) 28. Kf2 {[%emt 0:00:41]} Nc4 {[%emt 0:00:05]} 29. Rb1 {[%emt 0:03:14] [#]} (29. Rc1 $17 {was necessary.}) 29... Bc6 $1 $19 {[%emt 0:00:09]} (29... Rxh3 $2 30. Rb7 Qc8 31. c6 $18) 30. Rb6 {[%emt 0:00:54]} Nxb6 {[%emt 0:01:19]} 31. cxb6 {[%emt 0:00:16]} Qd7 {[%emt 0:00:09]} 32. Nc3 {[%emt 0:01:02]} Kg7 {[%emt 0:02:45]} (32... Rxh3 $142 33. a5 Qd6) 33. Qa5 {[%emt 0:01:54]} ({White should play} 33. h4 g4 34. Ne1) 33... Rxh3 $17 {[%emt 0:01:45]} 34. Qc5 {[%emt 0:00:59]} (34. Qb4 $17 {was worth a try.}) 34... Bxa4 $2 {[%emt 0:04:10]} (34... Rh1 $19 {[%cal Og7g8] ...Kg8! would now be deadly.} 35. a5 Bb7) 35. Nxa4 $11 {[%emt 0:00:07]} Qxa4 {[%emt 0:00:30]} 36. Qc7+ {[%emt 0:02:19]} Kg6 {[%emt 0:00:14]} 37. b7 $1 {[%emt 0:00:28]} Qa2+ {[%emt 0:00:10]} 38. Ke3 {[%emt 0:00:12]} Qb3+ {[%emt 0:00:14]} 39. Kf2 {[%emt 0:00:30]} Rh8 {[%emt 0:02:07]} 40. Qc8 $1 {[%emt 0:00:32]} Qb2+ {[%emt 0:00:27]} 41. Ke3 {[%emt 0:00:09]} Qa3+ {[%emt 0:00:17]} 42. Kf2 {[%emt 0:00:21]} Qb2+ {[%emt 0:00:25]} 43. Ke3 {[%emt 0:00:13]} Qa3+ {[%emt 0:00:38]} 44. Kf2 {[%emt 0:00:06]} Qf8 {[%emt 0:00:55]} 45. Qxe6 {[%emt 0:00:31]} (45. b8=Q $2 Qxc8 46. Qb2 Qc4 $19) 45... Kg7 {[%emt 0:00:32]} 46. Qd7+ {[%emt 0:01:13]} (46. Qxd5 $2 Qe7 47. Ng1 Rh2+ (47... Rb8 48. Ne2 $15) 48. Kf3 Rb2 $19) 46... Qf7 {[%emt 0:00:28]} 47. Qc8 {[%emt 0:00:18]} Qg8 {[%emt 0:00:19]} 48. Qd7+ {[%emt 0:00:39]} (48. b8=Q $2 Qxc8 49. Qxc8 Rxc8 $19) 48... Qf7 {[%emt 0:00:07]} 49. Qc8 {[%emt 0:00:07]} Qg8 {[%emt 0:00:04]} 50. Qd7+ {[%emt 0:00:06]} (50. b8=Q $2 Qxc8 51. Qd6 Qc2+ 52. Kg1 Ra8 53. Qe7+ Kg6 $19) 50... Kh6 {[%emt 0:00:58]} (50... Qf7 $5 51. Qc8 $8 $11) 51. Qd6 {[%emt 0:00:58]} Kg7 {[%emt 0:00:34]} 52. Qc7+ {[%emt 0:01:18]} Kg6 {[%emt 0:00:19]} 53. Qd6 {[%emt 0:00:26]} Qe8 $2 {[%emt 0:01:07][%mdl 8192]} (53... Kg7 $11) 54. Ne5+ {[%emt 0:00:33]} (54. Qxd5 $2 Qe7 55. Qc6 Kg7 $17) 54... Kf5 {[%emt 0:00:31]} 55. Qd7+ {[%emt 0:00:49]} (55. b8=Q $142 fxe5 56. Qb1+ e4 57. Qxd5+ Kg6 58. Qb6+ (58. Qbxe4+ Qxe4 59. Qxe4+ Kh6 $18) 58... Kh5 59. Qf5 e3+ 60. Kg1 Qc6 61. Qxc6 Rh6 62. Qh3#) 55... Qxd7 $18 {[%emt 0:00:27]} 56. Nxd7 {[%emt 0:00:01]} Ke4 {[%emt 0:00:17]} 57. Nxf6+ {[%emt 0:00:30]} (57. b8=B Kxd4 (57... Rh6 58. Bc7 $11) 58. Ba7+ Kd3 59. Nc5+ Kc3 $15) 57... Kxd4 {[%emt 0:00:15]} 58. Nd7 {[%emt 0:00:02]} Kc3 {[%emt 0:00:14]} 59. b8=Q {[%emt 0:00:18]} ({Inferior is} 59. b8=B d4 60. Be5 Rd8 $17) 59... Rxb8 {[%emt 0:00:04]} 60. Nxb8 {[%emt 0:00:03]} d4 {[%emt 0:00:41]} 61. Nd7 {[%emt 0:00:47]} d3 {[%emt 0:00:12]} 62. Nf6 {[%emt 0:00:06]} d2 {[%emt 0:00:52]} 63. Ne4+ {[%emt 0:01:40]} Kd3 {[%emt 0:00:09]} 64. Nxd2 $1 {[%emt 0:00:27]} Kxd2 {[%emt 0:00:04]} 65. Kf3 {[%emt 0:00:08]} Ke1 {[%emt 0:00:06] [#]} 66. g4 $1 {[%emt 0:00:15]} 1-0

[Event "29th Bosnjaci Open 2025"]
[Site "Bosnjaci"]
[Date "2025.01.05"]
[Round "4.17"]
[White "Sipic, Hrvoje"]
[Black "Jelecevic, Ivo"]
[Result "1/2-1/2"]
[ECO "B50"]
[WhiteElo "2213"]
[BlackElo "1972"]
[Annotator "TA"]
[PlyCount "87"]
[EventDate "2025.01.04"]
[EventType "swiss"]
[EventCountry "CRO"]
[SourceTitle "playchess.com"]
[Source "ChessBase"]
[SourceQuality "1"]
[TimeControl "5400+30"]

{[%evp 9,87,23,51,16,17,6,38,47,53,17,19,0,19,9,9,27,15,24,23,-9,0,-5,0,-22,-16,-18,-13,-33,-30,-36,-35,-71,-86,-121,-74,-75,-51,-77,-52,-74,-48,-90,-59,-51,-57,-68,-71,-83,-79,-207,-212,-299,-299,-454,-179,-168,-180,-164,-163,-172,-130,-187,-206,-172,-158,-179,-97,-86,-23,-20,-9,-25,-5,-8,0,0,0,0,0,-530]} 1. e4 {[%emt 0:00:05]} c5 {[%emt 0:01:00]} 2. Nf3 {[%emt 0:00:05]} d6 {[%emt 0:00:05]} 3. c3 {[%emt 0:01:00]} Nf6 {[%emt 0:00:50]} 4. Be2 {[%emt 0:00:13]} a6 {[%emt 0:00:27]} 5. O-O {[%emt 0:00:24]} Bg4 {[%emt 0:01:44][%cal Oe7e6]} 6. Qc2 {[%emt 0:01:33]} e6 {[%emt 0:00:23]} 7. d4 {[%emt 0:01:10]} Be7 {[%emt 0:03:28]} 8. dxc5 {[%emt 0:05:02]} dxc5 {[%emt 0:00:58]} 9. Bg5 {[%emt 0:07:41]} (9. Bf4 {seems wilder.} Nh5 10. Rd1 Nd7 11. Ne5) 9... O-O {[%emt 0:02:44]} 10. Nbd2 {[%emt 0:01:22][%cal Bb1d2,Bd2c4,Bc4e5][%mdl 32]} h6 {[%emt 0:03:25]} 11. Bh4 {[%emt 0:00:44]} Nh5 {[%emt 0:00:57][%cal Bf6h5,Bh5f4,Bf4e2][%mdl 32]} 12. Bxe7 {[%emt 0:03:48]} Qxe7 {[%emt 0:00:33]} 13. Nc4 {[%emt 0:03:06]} Nf4 {[%emt 0:04:54]} 14. Nce5 {[%emt 0:14:44] Prevents Nc6} Nxe2+ {[%emt 0:01:06]} 15. Qxe2 {[%emt 0:00:05]} Bxf3 {[%emt 0:00:26]} 16. Qxf3 {[%emt 0:00:48]} Qc7 {[%emt 0:01:03]} 17. Ng4 {[%emt 0:02:36]} Nc6 {[%emt 0:01:02]} 18. Rfe1 {[%emt 0:02:03]} Rad8 {[%emt 0:00:41]} 19. Re2 {[%emt 0:07:20] Inhibits Rd2.} Rd7 {[%emt 0:05:36]} 20. g3 {[%emt 0:11:06]} Rfd8 {[%emt 0:01:25]} 21. Rae1 {[%emt 0:05:06]} c4 {[%emt 0:05:58]} ({Black should try} 21... Qa5 22. a3 Qb5) 22. Kg2 $17 {[%emt 0:01:44]} b5 {[%emt 0:02:10]} 23. h4 {[%emt 0:01:05]} Rd3 {[%emt 0:02:49]} 24. Re3 {[%emt 0:01:57]} Rd2 {[%emt 0:01:06]} 25. R1e2 {[%emt 0:00:49]} h5 {[%emt 0:04:09]} 26. Nh2 $1 {[%emt 0:00:58]} g6 {[%emt 0:01:03]} 27. Qf4 {[%emt 0:04:48]} Qxf4 {[%emt 0:04:49]} 28. gxf4 {[%emt 0:00:04]} Rd1 $36 {[%emt 0:00:24][%mdl 2048] Keeping White busy.} 29. f5 {[%emt 0:02:38] [#]} Ne5 $1 $19 {[%emt 0:00:27]} (29... gxf5 30. exf5 exf5 31. Re8+ Kg7 32. R8e3) 30. fxe6 {[%emt 0:01:59]} (30. Rc2 $142) 30... fxe6 {[%emt 0:00:10]} 31. Rg3 {[%emt 0:06:24]} (31. Nf3 {is a better defense.} Ng4 32. e5 Nxe3+ 33. fxe3) 31... Kg7 $2 {[%emt 0:00:59]} (31... R8d2 32. Rxd2 Rxd2 33. Nf3 Nxf3 (33... Rxb2 $2 34. Nxe5 Rxa2 35. Rxg6+ Kf8 36. Rxe6 $18) 34. Kxf3 $17) (31... Nd3 32. Rxg6+ Kf7) 32. Nf3 {[%emt 0:03:38]} Nd3 {[%emt 0:00:25]} 33. Kh2 {[%emt 0:02:39]} Nf4 {[%emt 0:01:21]} 34. Rc2 {[%emt 0:00:16]} Rb1 {[%emt 0:02:53]} 35. Rg1 {[%emt 0:03:02] [#]} (35. Nd2 $17 Re1 36. Re3 Rxe3 37. fxe3) 35... Rxg1 $1 {[%emt 0:00:15]} 36. Kxg1 {[%emt 0:01:20][%mdl 4096] Endgame KRN-KRN} Rd1+ {[%emt 0:00:25]} 37. Kh2 {[%emt 0:00:14]} Rb1 {[%emt 0:03:31]} (37... Kf6 $19 38. Kg3 Nd3) 38. a4 $17 {[%emt 0:02:45]} Nd3 {[%emt 0:05:12]} (38... bxa4 $17 {and ...Nd3 would now be decisive} 39. Ne5 Re1) 39. axb5 $11 {[%emt 0:00:06]} axb5 {[%emt 0:00:04][%cal Og7f6]} (39... Rxb2 $2 {is the wrong capture.} 40. Rxb2 axb5 41. Rxb5 $18) 40. Nd4 {[%emt 0:00:16][%csl LRb5,LRe6]} Nxb2 {[%emt 0:00:37] White should prevent ...Nd3.} 41. Nxb5 {[%emt 0:00:39]} Nd1 {[%emt 0:00:38]} 42. Nd6 {[%emt 0:00:58]} Rb3 {[%emt 0:00:41]} 43. Nxc4 {[%emt 0:00:29]} Rxc3 {[%emt 0:00:36]} 44. Re2 $2 {[%emt 0:00:31][%mdl 8192]} (44. Rxc3 $11 {and White stays safe.} Nxc3 45. f3) 1/2-1/2

[Event "29th Bosnjaci Open 2025"]
[Site "Bosnjaci"]
[Date "2025.01.05"]
[Round "4.18"]
[White "Valkovic, Kristian"]
[Black "Starcevic, Ante Leon"]
[Result "0-1"]
[ECO "B25"]
[WhiteElo "2033"]
[BlackElo "2200"]
[Annotator "TA"]
[PlyCount "42"]
[EventDate "2025.01.04"]
[EventType "swiss"]
[EventCountry "CRO"]
[SourceTitle "playchess.com"]
[Source "ChessBase"]
[SourceQuality "1"]
[TimeControl "5400+30"]

{[%evp 20,42,-4,-17,-5,-13,0,-22,0,0,23,27,25,-20,-11,-8,0,-447,-456,-452,-463,-552,-544,-543,-535]} 1. g3 {[%emt 0:00:04]} g6 {[%emt 0:00:14]} 2. Bg2 {[%emt 0:00:07]} Bg7 {[%emt 0:00:07]} 3. d3 {[%emt 0:00:07]} c5 {[%emt 0:00:29]} 4. e4 {[%emt 0:00:51]} Nc6 {[%emt 0:00:11]} 5. Nc3 {[%emt 0:01:09]} Nf6 {[%emt 0:01:23]} 6. f4 {[%emt 0:03:02]} d6 {[%emt 0:00:13]} 7. Nf3 {[%emt 0:00:06]} O-O {[%emt 0:00:17]} 8. O-O {[%emt 0:00:06]} Rb8 {[%emt 0:02:06]} 9. h3 {[%emt 0:14:44]} b5 {[%emt 0:03:02][%cal Bb7b5,Bb5b4][%mdl 32]} 10. g4 {[%emt 0:01:52]} b4 {[%emt 0:00:54]} 11. Ne2 {[%emt 0:03:17]} Nd7 {[%emt 0:07:01]} 12. Kh1 {[%emt 0:07:06]} Qc7 {[%emt 0:04:21]} 13. Qe1 {[%emt 0:01:10]} a5 {[%emt 0:06:21]} 14. Qh4 {[%emt 0:03:04]} Ba6 {[%emt 0:03:32]} 15. f5 {[%emt 0:07:21]} Nce5 {[%emt 0:10:33]} 16. Nf4 {[%emt 0:06:33] Threatens to win with Nd5.} Nxf3 {[%emt 0:05:58]} 17. Rxf3 {[%emt 0:01:19]} Bb7 {[%emt 0:05:05]} 18. Ne6 $2 {[%mdl 8192]} fxe6 $19 {[%emt 0:04:10]} 19. fxg6 {[%emt 0:21:32]} hxg6 {[%emt 0:01:46]} 20. Bh6 {[%emt 0:00:38]} Rxf3 {[%emt 0:02:13]} 21. Bxf3 {[%emt 0:01:30]} Ne5 {[%emt 0:00:59]} 0-1

[Event "29th Bosnjaci Open 2025"]
[Site "Bosnjaci"]
[Date "2025.01.05"]
[Round "4.19"]
[White "Mandalinic, David"]
[Black "Vidovic, Sasa"]
[Result "1/2-1/2"]
[ECO "A53"]
[WhiteElo "1982"]
[BlackElo "2173"]
[Annotator "RC"]
[PlyCount "38"]
[EventDate "2025.01.04"]
[EventType "swiss"]
[EventCountry "CRO"]
[SourceTitle "playchess.com"]
[Source "ChessBase"]
[SourceQuality "1"]
[TimeControl "5400+30"]

1. d4 {[%emt 0:00:04]} Nf6 {[%emt 0:12:09]} 2. c4 {[%emt 0:00:17]} d6 {[%emt 0:00:09]} 3. Nf3 {[%emt 0:00:24]} Bg4 {[%emt 0:00:09]} 4. Qb3 {[%emt 0:00:41]} Qc8 {[%emt 0:00:20]} 5. h3 {[%emt 0:00:32]} Bh5 {[%emt 0:00:15]} 6. g4 {[%emt 0:01:48]} Bg6 {[%emt 0:00:08]} 7. g5 {[%emt 0:01:07]} Nfd7 {[%emt 0:02:14]} 8. Nc3 {[%emt 0:01:42]} e5 {[%emt 0:01:46]} 9. d5 {[%emt 0:12:30]} Nc5 {[%emt 0:02:56]} 10. Qd1 {[%emt 0:00:29]} a5 {[%emt 0:00:25]} 11. Be3 {[%emt 0:02:14]} Nba6 {[%emt 0:00:57]} 12. h4 {[%emt 0:04:25]} Bh5 {[%emt 0:18:37]} 13. Bxc5 {[%emt 0:12:05]} Nxc5 {[%emt 0:00:22]} 14. Qc2 {[%emt 0:01:41]} h6 {[%emt 0:08:45]} 15. Bh3 {[%emt 0:08:24]} Bg4 {[%emt 0:00:30]} 16. Bxg4 {[%emt 0:00:34]} Qxg4 {[%emt 0:00:08]} 17. Nb5 {[%emt 0:02:07]} Qd7 {[%emt 0:08:07]} 18. O-O-O {[%emt 0:06:53]} h5 {[%emt 0:04:28]} 19. g6 {[%emt 0:02:09]} f6 {[%emt 0:01:17]} 1/2-1/2

[Event "29th Bosnjaci Open 2025"]
[Site "Bosnjaci"]
[Date "2025.01.05"]
[Round "4.20"]
[White "Djuric, Leon"]
[Black "Pasalic, Adnan"]
[Result "1-0"]
[ECO "D36"]
[WhiteElo "2145"]
[BlackElo "1966"]
[Annotator "RC"]
[PlyCount "95"]
[EventDate "2025.01.04"]
[EventType "swiss"]
[EventCountry "CRO"]
[SourceTitle "playchess.com"]
[Source "ChessBase"]
[SourceQuality "1"]
[TimeControl "5400+30"]

1. d4 {[%emt 0:00:03]} e6 {[%emt 0:00:14]} 2. c4 {[%emt 0:00:09]} Nf6 {[%emt 0:00:14]} 3. Nc3 {[%emt 0:00:09]} d5 {[%emt 0:00:34]} 4. cxd5 {[%emt 0:00:16]} exd5 {[%emt 0:00:13]} 5. Bg5 {[%emt 0:00:09]} Be7 {[%emt 0:00:23]} 6. e3 {[%emt 0:00:14]} O-O {[%emt 0:00:16]} 7. Bd3 {[%emt 0:00:24]} c6 {[%emt 0:00:30]} 8. Nge2 {[%emt 0:00:15]} Nbd7 {[%emt 0:01:23]} 9. O-O {[%emt 0:00:42]} Re8 {[%emt 0:00:48]} 10. Qc2 {[%emt 0:00:26]} Nf8 {[%emt 0:01:14]} 11. f3 {[%emt 0:04:54]} h6 {[%emt 0:07:50]} 12. Bh4 {[%emt 0:00:29]} Ne6 {[%emt 0:13:32]} 13. Bf2 {[%emt 0:03:54]} c5 {[%emt 0:01:35]} 14. dxc5 {[%emt 0:09:18]} Nxc5 {[%emt 0:02:27]} 15. Bb5 {[%emt 0:01:37]} Bd7 {[%emt 0:01:34]} 16. Bxd7 {[%emt 0:01:19]} Ncxd7 {[%emt 0:02:08]} 17. Rad1 {[%emt 0:04:00]} Qa5 {[%emt 0:02:42]} 18. Nf4 {[%emt 0:07:10]} Nb6 {[%emt 0:02:51]} 19. Qb3 {[%emt 0:08:49]} Rad8 {[%emt 0:02:27]} 20. Nb5 {[%emt 0:05:22]} g5 {[%emt 0:07:10]} 21. Nd3 {[%emt 0:12:29]} Nc4 {[%emt 0:01:49]} 22. Nc3 {[%emt 0:01:09]} Qa6 {[%emt 0:02:26]} 23. Rfe1 {[%emt 0:02:53]} Bf8 {[%emt 0:01:12]} 24. Nb4 {[%emt 0:03:02]} Bxb4 {[%emt 0:01:36]} 25. Qxb4 {[%emt 0:00:02]} Qc6 {[%emt 0:02:06]} 26. Rd4 {[%emt 0:05:37]} Rc8 {[%emt 0:02:37]} 27. Rd3 {[%emt 0:08:22]} Ne5 {[%emt 0:00:59]} 28. Rdd1 {[%emt 0:01:31]} Nc4 {[%emt 0:00:14]} 29. Rc1 {[%emt 0:01:37]} a5 {[%emt 0:04:21]} 30. Qb3 {[%emt 0:00:56]} Re6 {[%emt 0:02:20]} 31. Nb5 {[%emt 0:01:12]} Qd7 {[%emt 0:02:17]} 32. Nd4 {[%emt 0:01:10]} Rb6 {[%emt 0:00:31]} 33. Qd3 {[%emt 0:01:43]} Rxb2 {[%emt 0:03:33]} 34. Nf5 {[%emt 0:00:56]} h5 {[%emt 0:04:41]} 35. e4 {[%emt 0:01:45]} dxe4 {[%emt 0:06:13]} 36. Qxd7 {[%emt 0:00:10]} Nxd7 {[%emt 0:00:07]} 37. Ne7+ {[%emt 0:00:03]} Kf8 {[%emt 0:00:28]} 38. Nxc8 {[%emt 0:00:02]} b5 {[%emt 0:01:12]} 39. a4 {[%emt 0:01:06]} exf3 {[%emt 0:00:53]} 40. axb5 {[%emt 0:01:06]} Nde5 {[%emt 0:00:39]} 41. Rcd1 {[%emt 0:08:06]} fxg2 {[%emt 0:00:30]} 42. Rd8+ {[%emt 0:00:25]} Kg7 {[%emt 0:00:10]} 43. Bd4 {[%emt 0:00:45]} Rxb5 {[%emt 0:00:06]} 44. Nd6 {[%emt 0:00:15]} Kg6 {[%emt 0:00:52]} 45. Nxb5 {[%emt 0:00:33]} Nf3+ {[%emt 0:00:08]} 46. Kf2 {[%emt 0:00:09]} Nxe1 {[%emt 0:00:37]} 47. Kxe1 {[%emt 0:00:10]} Ne5 {[%emt 0:00:12]} 48. Kf2 {[%emt 0:00:12]} 1-0